bitfinex/quotes_SOLUSD_20241226
["timestamp","ask_amount","ask_price","bid_price","bid_amount"]
[1735223498338,30.0,188.91,188.81,15.0716441]
[1735223498630,30.0,188.91,188.79,15.0716441]
[1735223498834,30.0,188.91,188.8,23.776884]
[1735223499001,30.0,188.91,188.81,15.0716441]
[1735223499506,30.0,188.91,188.77,0.79430831]
[1735223499507,30.0,188.91,188.8,15.0716441]
[1735223500330,30.0,188.91,188.79,15.0716441]
[1735223500511,30.0,188.91,188.78,15.0716441]
[1735223500924,30.0,188.91,188.8,15.0716441]
[1735223501728,30.0,188.91,188.81,15.0716441]
[1735223501931,30.0,188.91,188.8,15.0716441]
[1735223502133,30.0,188.91,188.8,23.776884]
[1735223502428,30.0,188.91,188.78,15.0716441]
[1735223502429,7.9407,188.9,188.78,15.0716441]
[1735223502631,20.0,188.87,188.78,15.0716441]
[1735223503833,20.0,188.87,188.79,15.0716441]
[1735223504043,7.9407,188.9,188.8,15.0716441]
[1735223504336,7.9407,188.9,188.81,15.0716441]
[1735223504511,7.9407,188.9,188.8,15.0716441]
[1735223504713,7.9407,188.9,188.8,23.776884]
[1735223504928,30.0,188.89,188.78,15.0716441]
[1735223505137,30.0,188.89,188.61,8.13922193]
[1735223505138,1.5508,188.86,188.71,8.95861139]
[1735223505337,1.5508,188.86,188.76,15.0716441]
[1735223505925,1.5508,188.86,188.78,15.0716441]
[1735223506622,1.5508,188.86,188.76,15.0716441]
[1735223507131,1.5508,188.86,188.77,38.8485281]
[1735223507326,1.5508,188.86,188.77,15.0716441]
[1735223508426,1.5508,188.86,188.78,15.0716441]
[1735223508817,1.5508,188.86,188.8,15.0716441]
[1735223509021,9.4911,188.91,188.81,15.0716441]
[1735223510851,9.4911,188.91,188.75,0.91987265]
[1735223510852,9.4911,188.91,188.8,15.0716441]
[1735223513245,37.9414,188.89,188.77,15.0716441]
[1735223514348,7.9414,188.89,188.78,15.0716441]
[1735223514524,7.9414,188.89,188.79,15.0716441]
[1735223514719,37.64777094,188.91,188.81,15.0716441]
[1735223514939,31.5508,188.91,188.81,15.0716441]
[1735223515130,31.5508,188.91,188.82,15.0716441]
[1735223515535,31.5508,188.91,188.81,15.0716441]
[1735223516437,1.5508,188.91,188.83,15.0716441]
[1735223516748,1.5567,188.96,188.87,15.0716441]
[1735223517046,1.5567,188.96,188.89,15.0716441]
[1735223517345,1.5567,188.96,188.86,15.0716441]
[1735223517942,31.5567,188.96,188.85,15.0716441]
[1735223518149,1.5567,188.96,188.86,15.0716441]
[1735223518445,1.5567,188.96,188.83,23.776884]
[1735223518446,31.5567,188.96,188.85,15.0716441]
[1735223518627,31.5567,188.96,188.82,15.0716441]
[1735223518628,30.0,188.94,188.82,15.0716441]
[1735223518825,30.0,188.94,188.79,7.7535]
[1735223518826,30.0,188.94,188.81,15.0716441]
[1735223519059,30.0,188.94,188.82,23.776884]
[1735223519527,30.0,188.91,188.79,15.0716441]
[1735223520646,37.9403,188.91,188.79,15.0716441]
[1735223521252,30.0,188.88,188.79,15.0716441]
[1735223521450,30.0,188.88,188.77,15.0716441]
[1735223521650,30.0,188.88,188.76,15.0716441]
[1735223522150,30.0,188.88,188.77,15.0716441]
[1735223523033,20.0,188.87,188.78,15.0716441]
[1735223523723,20.0,188.87,188.79,15.0716441]
[1735223523924,20.0,188.87,188.78,15.0716441]
[1735223524219,20.0,188.87,188.77,15.0716441]
[1735223524729,20.0,188.87,188.75,23.776884]
[1735223524730,20.0,188.85,188.76,15.0716441]
[1735223525135,20.0,188.85,188.75,15.0716441]
[1735223525331,20.0,188.83,188.7,14.04225694]
[1735223525531,20.0,188.83,188.74,15.0716441]
[1735223525737,20.0,188.83,188.75,15.0716441]
[1735223526146,20.0,188.83,188.74,15.0716441]
[1735223526454,20.0,188.83,188.72,15.0716441]
[1735223526624,4.6899,188.82,188.72,15.0716441]
[1735223526820,34.6899,188.82,188.7,15.0716441]
[1735223528333,34.6899,188.82,188.71,15.0716441]
[1735223528533,34.6899,188.82,188.72,15.0716441]
[1735223529448,4.6899,188.82,188.74,15.0716441]
[1735223529650,1.5567,188.84,188.78,15.0716441]
[1735223529956,1.5627,188.89,188.74,32.6891474]
[1735223530159,15.8722,189.01,188.86,15.0716441]
[1735223530160,1.5627,188.94,188.86,15.0716441]
[1735223530330,1.5627,188.94,188.88,15.0716441]
[1735223530534,4.6899,188.96,188.89,15.0716441]
[1735223530759,4.6899,188.96,188.88,15.0716441]
[1735223531538,1.5627,188.98,188.89,15.0716441]
[1735223531851,8.02168035,189.02,188.95,15.0716441]
[1735223532065,1.5627,189.02,188.9,0.79396916]
[1735223532233,30.0,188.99,188.87,15.0716441]
[1735223532438,30.0,188.97,188.86,15.0716441]
[1735223532740,30.0,188.99,188.88,15.0716441]
[1735223532940,30.0,188.99,188.87,15.0716441]
[1735223533356,30.0,188.99,188.88,15.0716441]
[1735223533535,5.50135796,189.0,188.88,15.0716441]
[1735223533735,20.0,188.97,188.88,15.0716441]
[1735223533949,20.0,188.97,188.89,15.0716441]
[1735223534160,5.50135796,189.0,188.89,24.26537701]
[1735223535062,5.50135796,189.0,188.88,24.26537701]
[1735223535364,20.0,188.96,188.87,24.26537701]
[1735223535553,20.0,188.96,188.88,24.26537701]
[1735223535761,20.0,188.96,188.87,24.26537701]
[1735223535951,20.0,188.96,188.85,23.776884]
[1735223535952,20.0,188.96,188.88,24.26537701]
[1735223536257,1.5627,189.02,188.91,24.26537701]
[1735223536471,20.0,189.0,188.92,24.26537701]
[1735223536837,1.5627,189.02,188.92,24.26537701]
[1735223537570,31.5627,189.02,188.91,24.26537701]
[1735223539361,30.0,189.0,188.89,24.26537701]
[1735223539661,30.0,189.0,188.88,24.26537701]
[1735223539849,30.0,189.0,188.87,24.26537701]
[1735223540249,30.0,189.0,188.88,24.26537701]
[1735223540647,20.0,188.97,188.87,24.26537701]
[1735223540852,20.0,188.97,188.86,24.26537701]
[1735223541363,20.0,188.97,188.87,24.26537701]
[1735223541841,20.0,188.97,188.85,23.776884]
[1735223541842,50.0,188.97,188.86,24.26537701]
[1735223542042,20.0,188.97,188.86,24.26537701]
[1735223542243,20.0,188.97,188.87,24.26537701]
[1735223542458,14.28239,188.96,188.83,0.7939684]
[1735223542663,20.0,188.91,188.8,24.26537701]
[1735223543046,30.0,188.9,188.78,24.26537701]
[1735223543947,20.0,188.91,188.81,24.26537701]
[1735223544148,20.0,188.91,188.79,24.26537701]
[1735223544363,20.0,188.91,188.78,24.26537701]
[1735223544563,30.0,188.89,188.77,24.26537701]
[1735223544772,1.5288,188.88,188.77,23.776884]
[1735223544958,1.5288,188.88,188.77,48.04226101]
[1735223545261,1.5288,188.88,188.8,24.26537701]
[1735223545853,9.4683,188.93,188.81,24.26537701]
[1735223546057,1.5288,188.93,188.85,24.26537701]
[1735223546251,1.5288,188.93,188.86,24.26537701]
[1735223546456,4.6899,188.96,188.88,24.26537701]
[1735223546666,4.6899,188.96,188.87,48.04226101]
[1735223546876,12.6283,188.96,188.84,24.26537701]
[1735223547054,12.6283,188.96,188.86,24.26537701]
[1735223547256,4.6899,188.96,188.86,24.26537701]
[1735223547845,4.6899,188.96,188.87,23.776884]
[1735223548044,4.6899,188.96,188.87,24.26537701]
[1735223548245,4.6899,188.96,188.87,23.776884]
[1735223548453,4.6899,188.96,188.84,24.26537701]
[1735223548661,4.6899,188.96,188.85,24.26537701]
[1735223548859,4.6899,188.96,188.86,24.26537701]
[1735223549060,4.6899,188.96,188.85,24.26537701]
[1735223549350,20.0,188.95,188.83,48.04226101]
[1735223549548,30.0,188.94,188.82,24.26537701]
[1735223549766,20.0,188.93,188.83,24.26537701]
[1735223550067,20.0,188.93,188.82,23.776884]
[1735223550274,27.9395,188.93,188.8,24.26537701]
[1735223550458,1.5288,188.91,188.79,24.26537701]
[1735223550772,1.5288,188.91,188.79,23.776884]
[1735223551071,30.0,188.9,188.77,24.26537701]
[1735223551272,30.0,188.9,188.76,24.26537701]
[1735223551849,20.0,188.83,188.7,14.042197]
[1735223552068,20.0,188.83,188.71,24.26537701]
[1735223552751,20.0,188.83,188.72,48.04226101]
[1735223553150,20.0,188.83,188.72,23.776884]
[1735223553452,20.0,188.83,188.7,24.26537701]
[1735223553750,20.0,188.83,188.73,24.26537701]
[1735223553966,21.5288,188.86,188.78,24.26537701]
[1735223554372,1.5288,188.86,188.78,24.26537701]
[1735223554671,4.6899,188.89,188.81,24.26537701]
[1735223554970,8.18782615,188.9,188.76,0.79435948]
[1735223554971,8.18782615,188.9,188.82,48.04226101]
[1735223555154,1.5288,188.91,188.85,24.26537701]
[1735223555352,1.5288,188.91,188.84,24.26537701]
[1735223556068,1.5288,188.91,188.85,24.26537701]
[1735223556563,4.6899,188.94,188.85,24.26537701]
[1735223556747,4.6899,188.94,188.85,23.776884]
[1735223557269,4.6899,188.94,188.83,24.26537701]
[1735223557976,4.6899,188.94,188.84,24.26537701]
[1735223558956,4.6899,188.94,188.83,24.26537701]
[1735223559154,42.6291,188.94,188.83,24.26537701]
[1735223559375,42.6291,188.94,188.82,24.26537701]
[1735223559676,12.6291,188.94,188.82,24.26537701]
[1735223560275,42.6291,188.94,188.82,24.26537701]
[1735223560679,42.6291,188.94,188.83,24.26537701]
[1735223561178,20.0,188.92,188.84,24.26537701]
[1735223561357,20.0,188.92,188.83,24.26537701]
[1735223561963,4.6899,188.94,188.84,48.04226101]
[1735223562663,4.6899,188.94,188.85,24.26537701]
[1735223563065,4.6899,188.94,188.84,24.26537701]
[1735223563674,4.6899,188.94,188.83,48.04226101]
[1735223563872,30.0,188.93,188.8,24.26537701]
[1735223564059,30.0,188.93,188.81,23.776884]
[1735223564259,30.0,188.93,188.81,48.04226101]
[1735223564777,30.0,188.93,188.81,24.26537701]
[1735223564979,30.0,188.93,188.8,48.04226101]
[1735223565280,30.0,188.93,188.81,24.26537701]
[1735223565459,37.9394,188.93,188.81,24.26537701]
[1735223566686,37.9394,188.93,188.82,24.26537701]
[1735223567173,20.0,188.88,188.78,24.26537701]
[1735223567377,20.0,188.88,188.74,21.68922954]
[1735223567378,1.5227,188.87,188.77,24.26537701]
[1735223567680,6.2126,188.87,188.77,24.26537701]
[1735223567888,6.2126,188.87,188.78,23.776884]
[1735223568062,6.2126,188.87,188.79,24.26537701]
[1735223568409,6.2126,188.87,188.78,24.26537701]
[1735223569758,6.2126,188.87,188.79,24.26537701]
[1735223570177,1.5227,188.87,188.8,24.26537701]
[1735223570386,4.6899,188.91,188.82,24.26537701]
[1735223570706,4.6899,188.91,188.83,24.26537701]
[1735223570884,4.6899,188.91,188.82,24.26537701]
[1735223571077,1.5227,188.92,188.85,24.26537701]
[1735223571396,4.6899,188.95,188.87,24.26537701]
[1735223571594,4.6899,188.95,188.86,24.26537701]
[1735223573093,20.0,188.96,188.87,24.26537701]
[1735223573428,1.6096,188.97,188.88,24.26537701]
[1735223573579,1.6096,188.97,188.89,24.26537701]
[1735223573968,1.6096,188.97,188.88,24.26537701]
[1735223574273,1.6096,188.97,188.87,24.26537701]
[1735223574794,1.6096,188.97,188.88,48.04226101]
[1735223575671,1.6096,188.97,188.89,24.26537701]
[1735223575888,1.6096,188.97,188.88,24.26537701]
[1735223576094,1.6096,188.97,188.88,23.776884]
[1735223576288,1.6096,188.97,188.86,24.26537701]
[1735223576498,1.6096,188.97,188.85,48.04226101]
[1735223576872,30.0,188.96,188.83,24.26537701]
[1735223577084,30.0,188.96,188.84,24.26537701]
[1735223577496,30.0,188.94,188.83,24.26537701]
[1735223577699,0.12549,188.95,188.83,24.26537701]
[1735223578395,30.0,188.93,188.81,24.26537701]
[1735223578586,1.6096,188.91,188.8,24.26537701]
[1735223579297,1.6096,188.91,188.77,24.26537701]
[1735223579298,20.0,188.87,188.77,24.26537701]
[1735223579599,30.0,188.88,188.76,24.26537701]
[1735223580385,30.0,188.88,188.77,24.26537701]
[1735223580606,30.0,188.88,188.76,24.26537701]
[1735223580807,30.0,188.85,188.75,24.26537701]
[1735223581004,37.9419,188.87,188.74,24.26537701]
[1735223581204,37.9419,188.87,188.75,24.26537701]
[1735223582006,37.9419,188.87,188.76,24.26537701]
[1735223582397,37.9419,188.87,188.75,24.26537701]
[1735223583009,37.9419,188.87,188.73,24.26537701]
[1735223583200,30.0,188.85,188.73,24.26537701]
[1735223583398,30.0,188.85,188.74,24.26537701]
[1735223583597,30.0,188.85,188.75,24.26537701]
[1735223584611,30.0,188.85,188.74,24.26537701]
[1735223586014,30.0,188.85,188.73,24.26537701]
[1735223586218,30.0,188.85,188.75,24.26537701]
[1735223586718,30.0,188.85,188.74,24.26537701]
[1735223586921,30.0,188.85,188.71,24.57143369]
[1735223586922,4.6899,188.83,188.72,24.26537701]
[1735223587304,4.6899,188.83,188.73,24.26537701]
[1735223587511,9.5068,188.84,188.77,24.26537701]
[1735223587512,1.5635,188.84,188.77,24.26537701]
[1735223587725,1.5635,188.84,188.76,24.26537701]
[1735223588020,1.5635,188.84,188.73,0.79457233]
[1735223588021,1.5635,188.84,188.75,24.26537701]
[1735223588216,1.5635,188.84,188.73,24.26537701]
[1735223588824,1.5635,188.84,188.69,0.7945209]
[1735223588825,7.9436,188.83,188.72,24.26537701]
[1735223589300,20.0,188.8,188.72,24.26537701]
[1735223589503,20.0,188.8,188.72,23.776884]
[1735223589709,20.0,188.8,188.72,48.04226101]
[1735223590014,20.0,188.8,188.72,24.26537701]
[1735223590241,20.0,188.8,188.73,15.19200607]
[1735223590519,20.0,188.8,188.71,15.19200607]
[1735223590828,20.0,188.8,188.73,15.19200607]
[1735223591201,31.5635,188.84,188.76,38.96889007]
[1735223591202,1.5635,188.84,188.76,38.96889007]
[1735223591398,1.5635,188.84,188.76,15.19200607]
[1735223591613,1.5635,188.84,188.74,15.19200607]
[1735223591793,39.5068,188.84,188.72,15.19200607]
[1735223591998,9.5068,188.84,188.72,15.19200607]
[1735223592199,39.5068,188.84,188.73,15.19200607]
[1735223592399,20.0,188.81,188.72,15.19200607]
[1735223593000,20.0,188.81,188.71,15.19200607]
[1735223594124,20.0,188.81,188.72,15.19200607]
[1735223594499,20.0,188.8,188.72,15.19200607]
[1735223594698,20.0,188.81,188.68,0.79463404]
[1735223594699,20.0,188.81,188.73,15.19200607]
[1735223594923,20.0,188.81,188.72,15.19200607]
[1735223595817,20.0,188.81,188.71,15.19200607]
[1735223596419,20.0,188.81,188.72,15.19200607]
[1735223596624,20.0,188.79,188.7,15.19200607]
[1735223597624,20.0,188.79,188.71,15.19200607]
[1735223598223,20.0,188.79,188.72,15.19200607]
[1735223598455,20.0,188.79,188.71,15.19200607]
[1735223598730,20.0,188.79,188.7,15.19200607]
[1735223598908,20.0,188.79,188.71,15.19200607]
[1735223599221,4.6899,188.8,188.71,15.19200607]
[1735223600621,4.6899,188.8,188.7,15.19200607]
[1735223600824,30.0,188.79,188.67,15.19200607]
[1735223601121,1.5395,188.78,188.67,15.19200607]
[1735223601823,30.0,188.77,188.67,15.19200607]
[1735223602013,30.0,188.77,188.66,15.19200607]
[1735223602419,30.0,188.77,188.67,15.19200607]
[1735223603825,30.0,188.77,188.66,15.19200607]
[1735223604213,7.9465,188.76,188.65,38.96889007]
[1735223604412,7.9465,188.76,188.65,15.19200607]
[1735223604614,7.9465,188.76,188.66,15.19200607]
[1735223606530,1.5395,188.78,188.67,15.19200607]
[1735223606731,20.0,188.76,188.67,15.19200607]
[1735223606933,37.9461,188.77,188.65,15.19200607]
[1735223607230,50.0,188.74,188.63,0.79487106]
[1735223607425,20.0,188.7,188.55,1.559]
[1735223607730,30.0,188.68,188.55,2.35414286]
[1735223607930,1.5395,188.67,188.56,15.19200607]
[1735223608514,1.5395,188.67,188.57,15.19200607]
[1735223608714,1.5395,188.67,188.58,15.19200607]
[1735223608928,30.0,188.66,188.57,15.19200607]
[1735223609236,30.0,188.66,188.56,15.19200607]
[1735223609444,30.0,188.64,188.55,15.19200607]
[1735223609742,4.6899,188.63,188.52,15.19200607]
[1735223609946,4.6899,188.63,188.54,15.19200607]
[1735223610108,4.6899,188.63,188.55,15.19200607]
[1735223610310,24.6899,188.63,188.55,15.19200607]
[1735223610610,4.6899,188.63,188.49,0.79545538]
[1735223610820,30.0,188.6,188.49,15.19200607]
[1735223611022,31.5395,188.58,188.49,15.19200607]
[1735223611327,1.5395,188.58,188.5,15.19200607]
[1735223611834,1.5395,188.58,188.49,15.19200607]
[1735223612152,30.0,188.57,188.45,0.79548098]
[1735223612313,1.5395,188.58,188.48,15.19200607]
[1735223612631,30.0,188.57,188.48,15.19200607]
[1735223612828,1.5395,188.58,188.47,15.19200607]
[1735223613019,1.5395,188.58,188.48,15.19200607]
[1735223613448,1.5395,188.58,188.51,15.19200607]
[1735223613622,40.78687094,188.63,188.46,15.19200607]
[1735223613623,1.5395,188.62,188.53,15.19200607]
[1735223614629,1.5395,188.62,188.52,15.19200607]
[1735223614830,1.5395,188.62,188.51,15.19200607]
[1735223615430,30.0,188.61,188.51,15.19200607]
[1735223615623,30.0,188.61,188.5,15.19200607]
[1735223615823,30.0,188.59,188.49,15.19200607]
[1735223616019,7.9529,188.61,188.49,15.19200607]
[1735223616224,7.9529,188.61,188.5,15.19200607]
[1735223617840,30.0,188.59,188.47,24.57251237]
[1735223618147,30.0,188.59,188.45,1.559]
[1735223618311,36.82042114,188.59,188.47,15.19200607]
[1735223618845,30.0,188.57,188.47,15.19200607]
[1735223619739,30.0,188.55,188.44,15.19200607]
[1735223619942,30.0,188.55,188.46,15.19200607]
[1735223620137,1.5395,188.62,188.48,15.19200607]
[1735223620138,30.0,188.58,188.48,15.19200607]
[1735223620439,50.0,188.57,188.45,15.19200607]
[1735223620637,20.0,188.56,188.47,15.19200607]
[1735223620951,20.0,188.56,188.48,15.19200607]
[1735223621237,30.0,188.6,188.48,15.19200607]
[1735223621418,20.0,188.57,188.49,15.19200607]
[1735223621617,20.0,188.57,188.47,15.19200607]
[1735223621928,20.0,188.57,188.48,15.19200607]
[1735223622250,20.0,188.57,188.49,15.19200607]
[1735223622917,20.0,188.57,188.47,15.19200607]
[1735223623117,20.0,188.57,188.45,15.19200607]
[1735223623118,30.0,188.56,188.45,15.19200607]
[1735223623931,30.0,188.54,188.44,15.19200607]
[1735223624244,30.0,188.54,188.45,15.19200607]
[1735223624439,30.0,188.56,188.45,15.19200607]
[1735223624643,30.0,188.56,188.46,15.19200607]
[1735223625225,30.0,188.54,188.45,15.19200607]
[1735223625543,1.5975,188.53,188.45,15.19200607]
[1735223626824,1.5975,188.53,188.47,15.19200607]
[1735223627031,1.5975,188.53,188.46,15.19200607]
[1735223627745,1.5975,188.53,188.45,15.19200607]
[1735223628140,1.5975,188.53,188.46,15.19200607]
[1735223630126,1.5975,188.53,188.45,15.19200607]
[1735223631649,1.5975,188.53,188.46,15.19200607]
[1735223631948,31.5975,188.53,188.45,15.19200607]
[1735223632149,1.5975,188.53,188.44,15.19200607]
[1735223632444,31.5975,188.53,188.44,15.19200607]
[1735223632745,31.5975,188.53,188.45,15.19200607]
[1735223632935,31.5975,188.53,188.42,23.776884]
[1735223632936,31.5975,188.53,188.44,15.19200607]
[1735223633447,31.5975,188.53,188.43,15.19200607]
[1735223635981,31.5975,188.53,188.42,15.19200607]
[1735223636138,31.5975,188.53,188.43,15.19200607]
[1735223636327,31.5975,188.53,188.44,15.19200607]
[1735223636757,1.5975,188.53,188.46,15.19200607]
[1735223636943,1.5975,188.53,188.45,15.19200607]
[1735223637250,31.5975,188.53,188.43,15.19200607]
[1735223637751,31.5975,188.53,188.44,15.19200607]
[1735223637950,1.5975,188.53,188.45,15.19200607]
[1735223638629,1.5975,188.53,188.46,38.96889007]
[1735223638843,1.5395,188.57,188.49,15.19200607]
[1735223639048,1.5395,188.57,188.47,15.19200607]
[1735223639257,1.5395,188.57,188.46,15.19200607]
[1735223639748,1.5395,188.57,188.47,15.19200607]
[1735223640055,1.5395,188.61,188.49,15.19200607]
[1735223640431,30.0,188.59,188.48,15.19200607]
[1735223640644,7.9533,188.6,188.48,15.19200607]
[1735223640841,7.9533,188.6,188.5,23.776884]
[1735223641027,31.5395,188.61,188.5,38.96889007]
[1735223641232,31.5395,188.61,188.51,15.19200607]
[1735223641658,31.5395,188.61,188.5,15.19200607]
[1735223641834,31.5395,188.61,188.51,15.19200607]
[1735223642032,31.5395,188.61,188.48,0.79551548]
[1735223642033,1.5395,188.61,188.55,15.19200607]
[1735223642355,1.5395,188.61,188.53,15.19200607]
[1735223642556,1.5395,188.66,188.55,23.776884]
[1735223642727,1.5395,188.66,188.57,15.19200607]
[1735223642927,4.6899,188.68,188.59,38.96889007]
[1735223643127,1.5395,188.7,188.61,15.19200607]
[1735223643436,1.5395,188.7,188.6,15.19200607]
[1735223643841,1.5395,188.7,188.62,23.776884]
[1735223644254,1.5395,188.7,188.62,38.96889007]
[1735223644452,30.0,188.73,188.63,15.19200607]
[1735223644842,30.0,188.73,188.62,38.96889007]
[1735223645261,30.0,188.73,188.63,15.19200607]
[1735223645469,30.0,188.73,188.62,38.96889007]
[1735223645773,4.6899,188.77,188.67,15.19200607]
[1735223645934,4.6899,188.77,188.68,15.19200607]
[1735223646360,4.6899,188.77,188.69,15.19200607]
[1735223646955,1.5395,188.79,188.69,15.19200607]
[1735223647147,1.5395,188.79,188.7,15.19200607]
[1735223647462,1.5395,188.79,188.71,23.776884]
[1735223647840,1.5395,188.79,188.71,38.96889007]
[1735223648050,4.6899,188.82,188.72,15.19200607]
[1735223648556,1.6523,188.83,188.73,38.96889007]
[1735223648735,37.943,188.85,188.73,38.96889007]
[1735223648736,37.943,188.85,188.74,15.19200607]
[1735223648934,37.943,188.85,188.73,38.96889007]
[1735223649131,37.943,188.85,188.73,15.19200607]
[1735223649359,37.943,188.85,188.72,15.19200607]
[1735223649747,20.0,188.82,188.73,38.96889007]
[1735223649943,20.0,188.82,188.72,15.19200607]
[1735223650646,20.0,188.82,188.7,15.19200607]
[1735223650851,30.0,188.79,188.66,15.19200607]
[1735223651038,30.0,188.79,188.67,15.19200607]
[1735223651537,4.6899,188.75,188.64,15.19200607]
[1735223651745,30.0,188.74,188.64,15.19200607]
[1735223652643,4.6899,188.75,188.64,15.19200607]
[1735223652849,4.6899,188.75,188.65,15.19200607]
[1735223653052,30.0,188.74,188.65,15.19200607]
[1735223653348,30.0,188.74,188.64,15.19200607]
[1735223654167,4.6899,188.75,188.65,15.19200607]
[1735223654649,30.0,188.74,188.65,15.19200607]
[1735223654852,30.0,188.74,188.64,15.19200607]
[1735223655156,30.0,188.74,188.65,15.19200607]
[1735223656160,30.0,188.74,188.64,15.19200607]
[1735223656663,4.6899,188.75,188.65,15.19200607]
[1735223657166,30.0,188.74,188.64,15.19200607]
[1735223657768,4.6899,188.75,188.64,15.19200607]
[1735223658061,4.6899,188.75,188.65,15.19200607]
[1735223658279,1.6523,188.76,188.67,15.19200607]
[1735223658568,4.6899,188.8,188.71,15.19200607]
[1735223658961,1.6,188.82,188.72,15.19200607]
[1735223659340,30.0,188.83,188.72,15.19200607]
[1735223659564,30.0,188.83,188.71,15.19200607]
[1735223659742,30.0,188.81,188.7,15.19200607]
[1735223659937,30.0,188.81,188.69,15.19200607]
[1735223660151,30.0,188.81,188.7,15.19200607]
[1735223660872,30.0,188.81,188.71,15.19200607]
[1735223661161,20.0,188.8,188.71,15.19200607]
[1735223661361,37.944,188.83,188.72,15.19200607]
[1735223661863,30.0,188.81,188.69,15.19200607]
[1735223662963,37.9454,188.79,188.67,15.19200607]
[1735223663138,30.0,188.77,188.66,15.19200607]
[1735223663864,30.0,188.75,188.65,15.19200607]
[1735223664048,1.5137,188.77,188.61,15.19200607]
[1735223664049,34.6899,188.73,188.61,15.19200607]
[1735223664247,30.0,188.69,188.58,15.19200607]
[1735223664450,30.0,188.71,188.59,15.19200607]
[1735223664753,20.0,188.7,188.59,15.19200607]
[1735223664950,20.0,188.72,188.61,15.19200607]
[1735223665154,20.0,188.7,188.61,15.19200607]
[1735223665364,20.0,188.7,188.59,15.19200607]
[1735223665744,30.0,188.69,188.58,15.19200607]
[1735223665984,20.0,188.7,188.59,15.19200607]
[1735223666361,30.0,188.69,188.58,23.776884]
[1735223666568,30.0,188.69,188.58,38.96889007]
[1735223666753,30.0,188.69,188.59,15.19200607]
[1735223667262,7.9499,188.68,188.59,15.19200607]
[1735223667452,31.5137,188.67,188.55,15.19200607]
[1735223667655,20.0,188.64,188.52,15.19200607]
[1735223667963,30.0,188.63,188.53,15.19200607]
[1735223668271,20.0,188.64,188.54,15.19200607]
[1735223668567,34.6899,188.63,188.52,15.19200607]
[1735223668774,30.0,188.61,188.51,15.19200607]
[1735223668978,20.0,188.6,188.51,15.19200607]
[1735223669474,20.0,188.6,188.52,15.19200607]
[1735223670041,20.0,188.6,188.51,15.19200607]
[1735223670244,0.12549,188.58,188.44,6.462]
[1735223670455,20.0,188.56,188.48,15.19200607]
[1735223670964,20.0,188.56,188.45,0.79566012]
[1735223671151,51.5137,188.56,188.42,1.6615]
[1735223671356,30.0,188.54,188.44,15.19200607]
[1735223671571,51.5137,188.56,188.46,15.19200607]
[1735223671771,30.0,188.54,188.46,15.19200607]
[1735223671981,30.0,188.54,188.45,15.19200607]
[1735223672549,30.0,188.54,188.44,15.19200607]
[1735223672854,30.0,188.54,188.43,15.19200607]
[1735223673363,30.0,188.5,188.4,15.19200607]
[1735223673543,30.0,188.5,188.39,120.0]
[1735223673744,30.0,188.48,188.39,120.0]
[1735223674149,30.0,188.5,188.39,120.0]
[1735223674453,30.0,188.48,188.39,120.0]
[1735223675352,30.0,188.46,188.39,120.0]
[1735223675551,30.0,188.44,188.39,120.0]
[1735223676557,4.6899,188.45,188.39,120.0]
[1735223677953,31.5137,188.46,188.39,120.0]
[1735223678855,4.6899,188.5,188.4,15.19200607]
[1735223679054,30.0,188.54,188.44,15.19200607]
[1735223679466,30.0,188.54,188.4,24.57273568]
[1735223679467,30.0,188.54,188.43,15.19200607]
[1735223679859,30.0,188.52,188.42,15.19200607]
[1735223680269,30.0,188.5,188.41,24.38588902]
[1735223680466,37.9562,188.53,188.41,24.38588902]
[1735223680862,30.0,188.5,188.41,24.38588902]
[1735223681782,30.0,188.5,188.4,24.38588902]
[1735223682283,30.0,188.5,188.39,144.38588902]
[1735223682481,30.0,188.5,188.4,24.38588902]